fUSD/lending_fUSD_20250611
["ID","MTS","AMOUNT","RATE_DAILY","PERIOD"]
[365460494,1749682245373,-470.0,0.00019342,2]
[365460495,1749682245383,-490.0,0.00019342,2]
[365460496,1749682245392,-490.0,0.00019342,2]
[365460497,1749682245401,-490.0,0.00019342,2]
[365460498,1749682245410,-490.0,0.00019342,2]
[365460499,1749682245419,-348.07018617,0.00019342,2]
[365460500,1749682245429,-490.0,0.00019342,2]
[365460501,1749682245438,-576.20700295,0.00019342,2]
[365460502,1749682245448,-490.0,0.00019342,2]
[365460503,1749682245457,-450.0,0.00019342,2]
[365460504,1749682245466,-490.0,0.00019342,2]
[365460505,1749682245476,-614.93756288,0.00019342,2]
[365460506,1749682245485,-508.59879986,0.00019342,2]
[365460507,1749682245494,-470.0,0.00019342,2]
[365460508,1749682245503,-490.0,0.00019342,2]
[365460509,1749682245513,-490.0,0.00019342,2]
[365460510,1749682245521,-490.0,0.00019342,2]
[365460511,1749682245530,-490.0,0.00019342,2]
[365460512,1749682245540,-470.0,0.00019342,2]
[365460513,1749682245549,-490.0,0.00019342,2]
[365460514,1749682245559,-490.0,0.00019342,2]
[365460515,1749682245568,-490.0,0.00019342,2]
[365460516,1749682245577,-490.0,0.00019342,2]
[365460517,1749682245586,-490.0,0.00019342,2]
[365460518,1749682245597,-490.0,0.00019342,2]
[365460519,1749682245606,-490.0,0.00019342,2]
[365460520,1749682245616,-490.0,0.00019342,2]
[365460521,1749682245625,-490.0,0.00019342,2]
[365460522,1749682245634,-490.0,0.00019342,2]
[365460523,1749682245643,-470.0,0.00019342,2]
[365460524,1749682245653,-490.0,0.00019342,2]
[365460525,1749682245662,-751.8,0.00019342,2]
[365460526,1749682245671,-490.0,0.00019342,2]
[365460527,1749682245680,-490.0,0.00019342,2]
[365460528,1749682245690,-490.0,0.00019342,2]
[365460529,1749682245699,-490.0,0.00019342,2]
[365460531,1749682245708,-490.0,0.00019342,2]
[365460533,1749682245717,-490.0,0.00019342,2]
[365460534,1749682245726,-490.0,0.00019342,2]
[365460535,1749682245736,-827.84,0.00019342,2]
[365460536,1749682245745,-490.0,0.00019342,2]
[365460537,1749682245755,-565.0,0.00019342,2]
[365460538,1749682245764,-490.0,0.00019342,2]
[365460539,1749682245774,-490.0,0.00019342,2]
[365460540,1749682245784,-490.0,0.00019342,2]
[365460541,1749682245793,-490.0,0.00019342,2]
[365460542,1749682245806,-504.27,0.00019342,2]
[365460543,1749682245817,-490.0,0.00019342,2]
[365460544,1749682245826,-490.0,0.00019342,2]
[365460545,1749682245835,-490.0,0.00019342,2]
[365460546,1749682245847,-507.63,0.00019342,2]
[365460547,1749682245856,-490.0,0.00019342,2]
[365460548,1749682245867,-490.0,0.00019342,2]
[365460549,1749682245876,-962.49,0.00019342,2]
[365460550,1749682245887,-490.0,0.00019342,2]
[365460551,1749682245896,-490.0,0.00019342,2]
[365460552,1749682245905,-490.0,0.00019342,2]
[365460553,1749682245914,-490.0,0.00019342,2]
[365460554,1749682245924,-490.0,0.00019342,2]
[365460555,1749682245933,-490.0,0.00019342,2]
[365460556,1749682245943,-490.0,0.00019342,2]
[365460557,1749682245952,-490.0,0.00019342,2]
[365460558,1749682245961,-490.0,0.00019342,2]
[365460559,1749682245971,-490.0,0.00019342,2]
[365460560,1749682245980,-490.0,0.00019342,2]
[365460561,1749682245989,-490.0,0.00019342,2]
[365460562,1749682245998,-169.01,0.00019342,2]
[365460563,1749682246007,-490.0,0.00019342,2]
[365460564,1749682246016,-596.08,0.00019342,2]
[365460565,1749682246025,-490.0,0.00019342,2]
[365460566,1749682246035,-490.0,0.00019342,2]
[365460567,1749682246044,-490.0,0.00019342,2]
[365460568,1749682246053,-490.0,0.00019342,2]
[365460569,1749682246062,-490.0,0.00019342,2]
[365460570,1749682246072,-639.53,0.00019342,2]
[365460571,1749682246081,-490.0,0.00019342,2]
[365460572,1749682246090,-490.0,0.00019342,2]
[365460573,1749682246100,-490.0,0.00019342,2]
[365460574,1749682246109,-739.95,0.00019342,2]
[365460575,1749682246119,-490.0,0.00019342,2]
[365460576,1749682246128,-490.0,0.00019342,2]
[365460577,1749682246138,-673.4,0.00019342,2]
[365460578,1749682246148,-490.0,0.00019342,2]
[365460579,1749682246160,-684.3,0.00019342,2]
[365460580,1749682246169,-490.0,0.00019342,2]
[365460581,1749682246178,-490.0,0.00019342,2]
[365460582,1749682246187,-578.17258899,0.00019342,2]
[365460583,1749682246197,-490.0,0.00019342,2]
[365460584,1749682246206,-707.38,0.00019342,2]
[365460585,1749682246216,-490.0,0.00019342,2]
[365460586,1749682246225,-490.0,0.00019342,2]
[365460587,1749682246234,-490.0,0.00019342,2]
[365460588,1749682246244,-530.03,0.00019342,2]
[365460589,1749682246253,-490.0,0.00019342,2]
[365460590,1749682246263,-490.0,0.00019342,2]
[365460591,1749682246272,-490.0,0.00019342,2]
[365460592,1749682246281,-490.0,0.00019342,2]
[365460593,1749682246291,-795.97,0.00019342,2]
[365460594,1749682246300,-490.0,0.00019342,2]
[365460595,1749682246310,-490.0,0.00019342,2]
[365460596,1749682246319,-490.0,0.00019342,2]
[365460597,1749682246329,-490.0,0.00019342,2]
[365460598,1749682246338,-463.12598187,0.00019342,2]
[365460599,1749682246348,-1264.11,0.00019342,2]
[365460600,1749682246357,-490.0,0.00019342,2]
[365460601,1749682246369,-490.0,0.00019342,2]
[365460602,1749682246379,-541.00346182,0.00019342,2]
[365460603,1749682246388,-490.0,0.00019342,2]
[365460604,1749682246398,-490.0,0.00019342,2]
[365460605,1749682246407,-490.0,0.00019342,2]
[365460606,1749682246417,-490.0,0.00019342,2]
[365460607,1749682246427,-876.46,0.00019342,2]
[365460608,1749682246437,-490.0,0.00019342,2]
[365460609,1749682246447,-546.53,0.00019342,2]
[365460610,1749682246456,-490.0,0.00019342,2]
[365460611,1749682246466,-490.0,0.00019342,2]
[365460612,1749682246475,-490.0,0.00019342,2]
[365460613,1749682246485,-490.0,0.00019342,2]
[365460614,1749682246495,-490.0,0.00019342,2]
[365460615,1749682246505,-490.0,0.00019342,2]
[365460616,1749682246514,-490.0,0.00019342,2]
[365460617,1749682246524,-815.25,0.00019342,2]
[365460618,1749682246533,-490.0,0.00019342,2]
[365460619,1749682246543,-718.97,0.00019342,2]
[365460620,1749682246552,-1437.95,0.00019342,2]
[365460621,1749682246561,-490.0,0.00019342,2]
[365460622,1749682246570,-490.0,0.00019342,2]
[365460623,1749682246580,-490.0,0.00019342,2]
[365460624,1749682246589,-490.0,0.00019342,2]
[365460625,1749682246598,-490.0,0.00019342,2]
[365460626,1749682246607,-810.75,0.00019342,2]
[365460627,1749682246618,-490.0,0.00019342,2]
[365460628,1749682246627,-1004.11,0.00019342,2]
[365460629,1749682246637,-490.0,0.00019342,2]
[365460630,1749682246647,-490.0,0.00019342,2]
[365460631,1749682246657,-490.0,0.00019342,2]
[365460632,1749682246666,-490.0,0.00019342,2]
[365460633,1749682246676,-470.0,0.00019342,2]
[365460634,1749682246686,-798.92,0.00019342,2]
[365460635,1749682246696,-488.7359734,0.00019342,2]
[365460636,1749682246706,-444.9211908,0.00019342,2]
[365460637,1749682246715,-490.0,0.00019342,2]
[365460638,1749682246724,-490.0,0.00019342,2]
[365460639,1749682246734,-490.0,0.00019342,2]
[365460640,1749682246743,-959.6,0.00019342,2]
[365460641,1749682246753,-490.0,0.00019342,2]
[365460642,1749682246763,-490.0,0.00019342,2]
[365460643,1749682246773,-739.11,0.00019342,2]
[365460644,1749682246782,-490.0,0.00019342,2]
[365460645,1749682246792,-644.83,0.00019342,2]
[365460646,1749682246802,-490.0,0.00019342,2]
[365460647,1749682246816,-490.0,0.00019342,2]
[365460648,1749682246825,-490.0,0.00019342,2]
[365460649,1749682246834,-442.88,0.00019342,2]
[365460650,1749682246844,-490.0,0.00019342,2]
[365460651,1749682246853,-490.0,0.00019342,2]
[365460652,1749682246863,-490.0,0.00019342,2]
[365460653,1749682246872,-490.0,0.00019342,2]
[365460654,1749682246882,-490.0,0.00019342,2]
[365460655,1749682246892,-490.0,0.00019342,2]
[365460656,1749682246901,-490.0,0.00019342,2]
[365460657,1749682246911,-490.0,0.00019342,2]
[365460658,1749682246921,-490.0,0.00019342,2]
[365460659,1749682246930,-490.0,0.00019342,2]
[365460660,1749682246939,-490.0,0.00019342,2]
[365460661,1749682246948,-851.77,0.00019342,2]
[365460662,1749682246958,-490.0,0.00019342,2]
[365460663,1749682246967,-490.0,0.00019342,2]
[365460664,1749682246977,-409.2472697,0.00019342,2]
[365460665,1749682246986,-490.0,0.00019342,2]
[365460666,1749682246996,-490.0,0.00019342,2]
[365460667,1749682247005,-1220.45,0.00019342,2]
[365460668,1749682247014,-462.80846861,0.00019342,2]
[365460669,1749682247025,-490.0,0.00019342,2]
[365460670,1749682247035,-490.0,0.00019342,2]
[365460671,1749682247044,-1316.61,0.00019342,2]
[365460672,1749682247054,-490.0,0.00019342,2]
[365460673,1749682247063,-490.0,0.00019342,2]
[365460674,1749682247072,-490.0,0.00019342,2]
[365460675,1749682247081,-668.99,0.00019342,2]
[365460676,1749682247091,-490.0,0.00019342,2]
[365460677,1749682247100,-490.0,0.00019342,2]
[365460678,1749682247109,-490.0,0.00019342,2]
[365460679,1749682247120,-490.0,0.00019342,2]
[365460680,1749682247129,-490.0,0.00019342,2]
[365460681,1749682247139,-512.18,0.00019342,2]
[365460682,1749682247148,-490.0,0.00019342,2]
[365460683,1749682247157,-947.28,0.00019342,2]
[365460684,1749682247166,-490.0,0.00019342,2]
[365460685,1749682247176,-490.0,0.00019342,2]
[365460686,1749682247185,-490.0,0.00019342,2]
[365460687,1749682247194,-490.0,0.00019342,2]
[365460688,1749682247204,-635.45,0.00019342,2]
[365460689,1749682247213,-523.3,0.00019342,2]
[365460690,1749682247222,-490.0,0.00019342,2]
[365460691,1749682247232,-490.0,0.00019342,2]
[365460692,1749682247241,-972.33,0.00019342,2]
[365460693,1749682247251,-490.0,0.00019342,2]
[365460694,1749682247260,-490.0,0.00019342,2]
[365460695,1749682247269,-490.0,0.00019342,2]
[365460696,1749682247279,-503.24,0.00019342,2]
[365460697,1749682247288,-490.0,0.00019342,2]
[365460698,1749682247298,-490.0,0.00019342,2]
[365460699,1749682247307,-470.0,0.00019342,2]
[365460700,1749682247316,-490.0,0.00019342,2]
[365460701,1749682247325,-490.0,0.00019342,2]
[365460702,1749682247334,-490.0,0.00019342,2]
[365460703,1749682247343,-470.0,0.00019342,2]
[365460704,1749682247353,-490.0,0.00019342,2]
[365460705,1749682247363,-490.0,0.00019342,2]
[365460706,1749682247372,-2035.03,0.00019342,2]
[365460707,1749682247381,-470.0,0.00019342,2]
[365460708,1749682247391,-635.68,0.00019342,2]
[365460709,1749682247399,-1119.15,0.00019342,2]
[365460710,1749682247409,-490.0,0.00019342,2]
[365460711,1749682247419,-490.0,0.00019342,2]
[365460712,1749682247430,-490.0,0.00019342,2]
[365460713,1749682247441,-822.24,0.00019342,2]
[365460714,1749682247450,-881.93,0.00019342,2]
[365460715,1749682247460,-993.39,0.00019342,2]
[365460716,1749682247469,-490.0,0.00019342,2]
[365460717,1749682247478,-1042.23,0.00019342,2]
[365460718,1749682247487,-490.0,0.00019342,2]
[365460719,1749682247497,-490.0,0.00019342,2]
[365460720,1749682247506,-490.0,0.00019342,2]
[365460721,1749682247515,-490.0,0.00019342,2]
[365460722,1749682247525,-490.0,0.00019342,2]
[365460723,1749682247534,-704.71,0.00019342,2]
[365460724,1749682247544,-938.38,0.00019342,2]
[365460725,1749682247553,-490.0,0.00019342,2]
[365460726,1749682247562,-490.0,0.00019342,2]
[365460727,1749682247571,-490.0,0.00019342,2]
[365460728,1749682247580,-299.1656514,0.00019342,2]
[365460729,1749682247589,-916.79,0.00019342,2]
[365460730,1749682247598,-490.0,0.00019342,2]
[365460731,1749682247607,-1000.0,0.00019342,2]
[365460732,1749682247618,-470.0,0.00019342,2]
[365460733,1749682247627,-470.0,0.00019342,2]
[365460734,1749682247636,-490.0,0.00019342,2]
[365460735,1749682247645,-1231.26,0.00019342,2]
[365460736,1749682247654,-490.0,0.00019342,2]
[365460737,1749682247663,-490.0,0.00019342,2]
[365460738,1749682247672,-490.0,0.00019342,2]
[365460739,1749682247682,-955.91,0.00019342,2]
[365460740,1749682247691,-490.0,0.00019342,2]
[365460741,1749682247701,-490.0,0.00019342,2]
[365460742,1749682247710,-490.0,0.00019342,2]
[365460743,1749682247719,-738.04,0.00019342,2]
[365460744,1749682247728,-518.41,0.00019342,2]
[365460745,1749682247737,-470.0,0.00019342,2]
[365460746,1749682247746,-2151.15,0.00019342,2]
[365460747,1749682247754,-490.0,0.00019342,2]
[365460748,1749682247763,-490.0,0.00019342,2]
[365460749,1749682247773,-560.98,0.00019342,2]
[365460750,1749682247782,-3527.25,0.00019342,2]
[365460751,1749682247791,-490.0,0.00019342,2]
[365460752,1749682247801,-721.09,0.00019342,2]
[365460753,1749682247816,-490.0,0.00019342,2]
[365460754,1749682247828,-490.0,0.00019342,2]
[365460755,1749682247837,-1115.21,0.00019342,2]
[365460756,1749682247846,-2152.54,0.00019342,2]
[365460757,1749682247855,-490.0,0.00019342,2]
[365460758,1749682247865,-6528.76,0.00019342,2]
[365460759,1749682247874,-3371.86,0.00019342,2]
[365460760,1749682247884,-763.65,0.00019342,2]
[365460761,1749682247893,-736.77,0.00019342,2]
[365460762,1749682247902,-490.0,0.00019342,2]
[365460763,1749682247913,-822.785935,0.00019342,2]
[365460764,1749682247921,-1030.98,0.00019342,2]
[365460765,1749682247930,-1080.71,0.00019342,2]
[365460766,1749682247939,-430.0,0.00019342,2]
[365460767,1749682247948,-770.07,0.00019342,2]
[365460768,1749682247957,-3782.9,0.00019342,2]
[365460769,1749682247966,-2754.37,0.00019342,2]
[365460770,1749682247975,-490.0,0.00019342,2]
[365460771,1749682247984,-339.11644418,0.00019342,2]
[365460772,1749682247994,-594.16,0.00019342,2]
[365460773,1749682248003,-4206.88,0.00019342,2]
[365460774,1749682248012,-490.0,0.00019342,2]
[365460775,1749682248021,-1011.23,0.00019342,2]
[365460776,1749682248030,-4732.31,0.00019342,2]
[365460777,1749682248039,-1000.0,0.00019342,2]
[365460778,1749682248049,-490.0,0.00019342,2]
[365460779,1749682248058,-490.0,0.00019342,2]
[365460780,1749682248067,-1275.07,0.00019342,2]
[365460781,1749682248076,-490.0,0.00019342,2]
[365460782,1749682248085,-1347.32,0.00019342,2]
[365460783,1749682248095,-9443.81,0.00019342,2]
[365460784,1749682248104,-188.92,0.00019342,2]
[365460785,1749682248115,-1559.98,0.00019342,2]
[365460786,1749682248331,-837.34,0.00019342,2]
[365460787,1749682248341,-490.0,0.00019342,2]
[365460788,1749682248351,-2309.4,0.00019342,2]
[365460789,1749682248361,-891.582851,0.00019342,2]
[365460790,1749682248372,-690.99,0.00019342,2]
[365460791,1749682248381,-490.0,0.00019342,2]
[365460792,1749682248391,-1335.03,0.00019342,2]
[365460793,1749682248401,-490.0,0.00019342,2]
[365460794,1749682248411,-683.82,0.00019342,2]
[365460795,1749682248420,-1066.47,0.00019342,2]
[365460796,1749682248429,-661.64,0.00019342,2]
[365460797,1749682248439,-490.0,0.00019342,2]
[365460798,1749682248448,-552.17,0.00019342,2]
[365460799,1749682248457,-490.0,0.00019342,2]
[365460800,1749682248467,-900.3,0.00019342,2]
[365460801,1749682248477,-888.87,0.00019342,2]
[365460802,1749682248486,-182.08,0.00019342,2]
[365460803,1749682248495,-490.0,0.00019342,2]
[365460804,1749682248504,-1688.53,0.00019342,2]
[365460805,1749682248513,-975.79,0.00019342,2]
[365460806,1749682248523,-596.8,0.00019342,2]
[365460807,1749682248532,-490.0,0.00019342,2]
[365460808,1749682248541,-769.78,0.00019342,2]
[365460809,1749682248551,-929.5,0.00019342,2]
[365460810,1749682248560,-490.0,0.00019342,2]
[365460811,1749682248570,-470.0,0.00019342,2]
[365460812,1749682248579,-490.0,0.00019342,2]
[365460813,1749682248588,-1281.04,0.00019342,2]
[365460814,1749682248598,-1014.09,0.00019342,2]
[365460815,1749682248607,-490.0,0.00019342,2]
[365460816,1749682248618,-490.0,0.00019342,2]
[365460817,1749682248627,-1233.07,0.00019342,2]
[365460818,1749682248636,-500.07,0.00019342,2]
[365460819,1749682248646,-1557.05,0.00019342,2]
[365460820,1749682248655,-470.0,0.00019342,2]
[365460821,1749682248665,-1625.34,0.00019342,2]
[365460822,1749682248674,-490.0,0.00019342,2]
[365460823,1749682248683,-644.03,0.00019342,2]
[365460824,1749682248693,-572.33,0.00019342,2]
[365460825,1749682248702,-1169.87,0.00019342,2]
[365460826,1749682248711,-490.0,0.00019342,2]
[365460827,1749682248721,-983.0,0.00019342,2]
[365460828,1749682248730,-490.0,0.00019342,2]
[365460829,1749682248739,-3559.69,0.00019342,2]
[365460830,1749682248748,-490.0,0.00019342,2]
[365460831,1749682248758,-5508.73,0.00019342,2]
[365460832,1749682248767,-490.0,0.00019342,2]
[365460833,1749682248776,-490.0,0.00019342,2]
[365460834,1749682248785,-807.18,0.00019342,2]
[365460835,1749682248795,-470.0,0.00019342,2]
[365460836,1749682248808,-490.0,0.00019342,2]
[365460837,1749682248817,-3691.3,0.00019342,2]
[365460838,1749682248827,-1245.73,0.00019342,2]
[365460839,1749682248836,-832.05,0.00019342,2]
[365460840,1749682248845,-467.84624038,0.00019342,2]
[365460841,1749682248855,-858.99,0.00019342,2]
[365460842,1749682248865,-490.0,0.00019342,2]
[365460843,1749682248875,-1825.24,0.00019342,2]
[365460844,1749682248884,-490.0,0.00019342,2]
[365460845,1749682248893,-2458.1,0.00019342,2]
[365460846,1749682248903,-615.88848019,0.00019342,2]
[365460847,1749682248912,-490.0,0.00019342,2]
[365460848,1749682248922,-490.0,0.00019342,2]
[365460849,1749682248931,-1137.59,0.00019342,2]
[365460850,1749682248940,-1754.03,0.00019342,2]
[365460851,1749682248949,-490.0,0.00019342,2]
[365460852,1749682248959,-490.0,0.00019342,2]
[365460853,1749682248968,-490.0,0.00019342,2]
[365460854,1749682248978,-490.0,0.00019342,2]
[365460855,1749682248987,-638.62,0.00019342,2]
[365460856,1749682248997,-783.4,0.00019342,2]
[365460857,1749682249007,-2036.59,0.00019342,2]
[365460858,1749682249016,-470.0,0.00019342,2]
[365460859,1749682249025,-1472.05,0.00019342,2]
[365460860,1749682249035,-696.28,0.00019342,2]
[365460861,1749682249045,-490.0,0.00019342,2]
[365460862,1749682249055,-716.93,0.00019342,2]
[365460863,1749682249065,-2777.28,0.00019342,2]
[365460864,1749682249075,-490.0,0.00019342,2]
[365460865,1749682249084,-695.53,0.00019342,2]
[365460866,1749682249093,-1438.51,0.00019342,2]
[365460867,1749682249103,-490.0,0.00019342,2]
[365460868,1749682249112,-490.0,0.00019342,2]
[365460869,1749682249123,-779.91,0.00019342,2]
[365460870,1749682249133,-1739.59,0.00019342,2]
[365460871,1749682249142,-1014.44,0.00019342,2]
[365460872,1749682249151,-490.0,0.00019342,2]
[365460873,1749682249161,-1173.92,0.00019342,2]
[365460874,1749682249171,-848.65,0.00019342,2]
[365460875,1749682249180,-555.79,0.00019342,2]
[365460876,1749682249190,-490.0,0.00019342,2]
[365460877,1749682249199,-4659.92,0.00019342,2]
[365460878,1749682249209,-470.0,0.00019342,2]
[365460879,1749682249218,-1042.0,0.00019342,2]
[365460880,1749682249228,-490.0,0.00019342,2]
[365460881,1749682249237,-490.0,0.00019342,2]
[365460882,1749682249247,-532.51,0.00019342,2]
[365460883,1749682249256,-490.0,0.00019342,2]
[365460884,1749682249266,-490.0,0.00019342,2]
[365460885,1749682249276,-539.18,0.00019342,2]
[365460886,1749682249286,-1263.76,0.00019342,2]
[365460887,1749682249295,-490.0,0.00019342,2]
[365460888,1749682249305,-490.0,0.00019342,2]
[365460889,1749682249314,-490.0,0.00019342,2]
[365460890,1749682249323,-490.0,0.00019342,2]
[365460891,1749682249333,-826.52,0.00019342,2]
[365460892,1749682249343,-490.0,0.00019342,2]
[365460893,1749682249352,-490.0,0.00019342,2]
[365460894,1749682249361,-490.0,0.00019342,2]
[365460895,1749682249373,-2065.32,0.00019342,2]
[365460896,1749682249383,-490.0,0.00019342,2]
[365460897,1749682249392,-1807.73,0.00019342,2]
[365460898,1749682249402,-480.38619813,0.00019342,2]
[365460899,1749682249411,-972.29,0.00019342,2]
[365460900,1749682249420,-3210.24,0.00019342,2]
[365460901,1749682249430,-490.0,0.00019342,2]
[365460902,1749682249439,-1058.67,0.00019342,2]
[365460903,1749682249449,-1031.42,0.00019342,2]
[365460904,1749682249458,-539.71,0.00019342,2]
[365460905,1749682249468,-490.0,0.00019342,2]
[365460906,1749682249478,-1038.53,0.00019342,2]
[365460907,1749682249487,-490.0,0.00019342,2]
[365460908,1749682249497,-470.0,0.00019342,2]
[365460909,1749682249507,-9848.47,0.00019342,2]
[365460910,1749682249517,-475.40579763,0.00019342,2]
[365460911,1749682249527,-490.0,0.00019342,2]
[365460912,1749682249536,-490.0,0.00019342,2]
[365460913,1749682249546,-1130.65,0.00019342,2]
[365460914,1749682249555,-614.97,0.00019342,2]
[365460915,1749682249564,-490.0,0.00019342,2]
[365460916,1749682249573,-490.0,0.00019342,2]
[365460917,1749682249582,-470.0,0.00019342,2]
[365460918,1749682249591,-490.0,0.00019342,2]
[365460919,1749682249600,-1776.31,0.00019342,2]
[365460920,1749682249608,-390.0,0.00019342,2]
[365460921,1749682249619,-253.30387545,0.00019342,2]
[365460922,1749682249651,-3232.83612455,0.00019342,2]
[365460923,1749682249660,-470.0,0.00019342,2]
[365460924,1749682249670,-490.0,0.00019342,2]
[365460925,1749682249679,-48.39953842,0.00019342,2]
[365460926,1749682249690,-900.17719714,0.00019342,2]
[365460927,1749682249702,-661.07326444,0.00019342,2]
[365460928,1749682249711,-3771.19512582,0.00019342,2]
[365460929,1749682249723,-1123.85487418,0.00019342,2]
[365460930,1749682249732,-490.0,0.00019342,2]
[365460931,1749682249741,-490.0,0.00019342,2]
[365460932,1749682249751,-470.0,0.00019342,2]
[365460933,1749682249760,-485.39431166,0.00019342,2]
[365460934,1749682249769,-490.0,0.00019342,2]
[365460935,1749682249778,-2389.29,0.00019342,2]
[365460936,1749682249787,-490.0,0.00019342,2]
[365460937,1749682249796,-490.0,0.00019342,2]
[365460938,1749682249810,-470.0,0.00019342,2]
[365460939,1749682249819,-490.0,0.00019342,2]
[365460940,1749682249828,-490.0,0.00019342,2]
[365460941,1749682249838,-2294.03,0.00019342,2]
[365460942,1749682249850,-826.81,0.00019342,2]
[365460943,1749682249859,-32.56467163,0.00019342,2]
[365460944,1749682249870,-457.43532837,0.00019342,2]
[365460945,1749682249881,-721.53,0.00019342,2]
[365460946,1749682249890,-2016.03,0.00019342,2]
[365460947,1749682249899,-2030.73,0.00019342,2]
[365460948,1749682249908,-486.10760876,0.00019342,2]
[365460949,1749682249918,-490.0,0.00019342,2]
[365460950,1749682249928,-490.0,0.00019342,2]
[365460951,1749682249937,-490.0,0.00019342,2]
[365460952,1749682249946,-2506.07,0.00019342,2]
[365460953,1749682249955,-490.0,0.00019342,2]
[365460954,1749682249964,-656.21,0.00019342,2]
[365460955,1749682249973,-490.0,0.00019342,2]
[365460956,1749682249984,-490.0,0.00019342,2]
[365460957,1749682249993,-989.95,0.00019342,2]
[365460958,1749682250003,-557.54,0.00019342,2]
[365460959,1749682250013,-490.0,0.00019342,2]
[365460960,1749682250022,-490.0,0.00019342,2]
[365460961,1749682250031,-806.07,0.00019342,2]
[365460962,1749682250042,-490.0,0.00019342,2]
[365460963,1749682250051,-489.91072532,0.00019342,2]
[365460964,1749682250061,-14460.44,0.00019342,2]
[365460965,1749682250070,-566.13,0.00019342,2]
[365460966,1749682250079,-660.62,0.00019342,2]
[365460967,1749682250089,-490.0,0.00019342,2]
[365460968,1749682250098,-490.0,0.00019342,2]
[365460969,1749682250107,-572.24,0.00019342,2]
[365460970,1749682250117,-490.0,0.00019342,2]
[365460971,1749682250126,-470.0,0.00019342,2]
[365460972,1749682250136,-490.0,0.00019342,2]
[365460973,1749682250145,-1727.48,0.00019342,2]
[365460974,1749682250154,-1282.12,0.00019342,2]
[365460975,1749682250164,-490.0,0.00019342,2]
[365460976,1749682250173,-285.09063045,0.00019342,2]
[365460977,1749682250185,-124.90936955,0.00019342,2]
[365460978,1749682250195,-490.0,0.00019342,2]
[365460979,1749682250204,-63.51064311,0.00019342,2]
[365460980,1749682250216,-406.48935689,0.00019342,2]
[365460981,1749682250225,-490.0,0.00019342,2]
[365460982,1749682250234,-490.0,0.00019342,2]
[365460983,1749682250244,-707.13163822,0.00019342,2]
[365460984,1749682250255,-243.92836178,0.00019342,2]
[365460985,1749682250265,-515.37140527,0.00019342,2]
[365460986,1749682250274,-490.0,0.00019342,2]
[365460987,1749682250284,-490.0,0.00019342,2]
[365460988,1749682250293,-490.0,0.00019342,2]
[365460989,1749682250302,-490.0,0.00019342,2]
[365460990,1749682250312,-747.49,0.00019342,2]
[365460991,1749682250321,-490.0,0.00019342,2]
[365460992,1749682250330,-490.0,0.00019342,2]
[365460993,1749682250340,-490.0,0.00019342,2]
[365460994,1749682250349,-3917.2,0.00019342,2]
[365460995,1749682250359,-1332.15,0.00019342,2]